{"text_format":"2","workbook":"xlsx","n_sheets":12,"sheets":["Záradék","Főösszesítő","Munkanem összesítő","2.Bontás, építőanyagok újraha","19.Költségtérítések","21.Irtás, föld- és sziklamunka","31.Helyszíni beton és vasbeton","42.Hideg- és melegburkolatok k","44.Fa- és műanyag szerkezet el","53.Közmű csatornaépítés","54.Közmű csővezetékek és szere","82.Épületgépészeti szerelvénye"],"not_rendered":{"charts":0,"images":0,"macros":0,"external_links":0,"defined_names":0,"comments":0,"pivot_tables":0},"unopened":[],"bounds":{"document_bytes":16777216,"sheet_cells":100000,"run_cost":"one","rows_first":2000,"rows_last":500,"rows_between":2000,"halvings":0,"cell_chars":16384,"cell_head_chars":4096},"cells_cut":0,"cells_raw":0,"read":"whole","date_system":"1900"}

{"sheet":"Záradék","index":0,"n_rows":33,"n_cols":4,"rows_kept":33,"cut":false,"hidden":false,"merged":[[32,1,32,2],[21,2,21,3],[20,2,20,3],[22,2,22,3],[23,2,23,3],[24,2,24,3],[25,2,25,3],[0,0,0,3],[1,0,1,3],[11,0,11,3],[15,0,15,3],[19,2,19,3]]}
[]
[]
[]
["Név :    SZTE MGK Takács Ferenc Képzőközpont       ",null,"                                       "]
["                                       ",null,"                                       "]
["Cím :    6800 Hódmezővásárhely, 0521/2 hrsz.                         ",null," Kelt: "]
["                                       ",null," Szám         :.............           "]
["                                       ",null," KSH besorolás:..................."]
["                                       ",null," Teljesítés:20.. év.....hó...nap "]
["A munka leírása:                       ",null," Készítette   :.....................   "]
[]
["Épület csapadék vízelvezetésének megfelelő megoldása, a férfi mosdó helyreállítása, valamint a szennyvízrendszer kamerázása és dokumentálása                                                                         "]
["Készült:                                                                      "]
["                                                                              "]
[]
["Költségvetés főösszesítő (HUF)"]
["Megnevezés",null,"Anyagköltség","Díjköltség"]
["Építmény közvetlen költségei",null,{"$f":"Főösszesítő!C5","v":0},{"$f":"Főösszesítő!D5","v":0}]
[]
["Nettó ajánlati ár: A+D",null,{"$f":"C18+D18","v":0}]
["Áfa összege (27%):",0.27,{"$f":"C20*B21","v":0}]
["Bruttó ajánlati ár:",null,{"$f":"C20+C21","v":0}]
["Nettó tartalékkeret (10 %):",0.1,{"$f":"C20*B23","v":0}]
["Áfa összege (27%):",0.27,{"$f":"C23*B24","v":0}]
["Bruttó tartalékkeret:",null,{"$f":"C23+C24","v":0}]
["Tartalékkerettel növelt bruttó ajánlati ár:",null,{"$f":"C22+C25","v":0}]
[]
[]
[]
[]
[]
[]
[null,"Aláírás"]

{"sheet":"Főösszesítő","index":1,"n_rows":8,"n_cols":4,"rows_kept":8,"cut":false,"hidden":false,"merged":[[0,0,0,3],[2,0,2,3],[5,2,5,3],[6,2,6,3],[7,2,7,3]]}
[]
[]
["Költségvetés főösszesítő"]
["Megnevezés",null,"Anyagköltség","Díjköltség"]
["1 Építmény közvetlen költségei",null,{"$f":"'Munkanem összesítő'!C11","v":0},{"$f":"'Munkanem összesítő'!D11","v":0}]
["2.1 ÁFA vetítési alap",null,{"$f":"ROUND(C5+D5,0)","v":0}]
["2.2 ÁFA",0.27,{"$f":"ROUND(C6*B7,0)","v":0}]
["3 A munka ára (HUF)",null,{"$f":"ROUND(C7+C6,0)","v":0}]

{"sheet":"Munkanem összesítő","index":2,"n_rows":11,"n_cols":4,"rows_kept":11,"cut":false,"hidden":false,"merged":[]}
["Ssz.","Megnevezés","Anyagköltség","Díjköltség"]
["2","Bontás, építőanyagok újrahasznosítása",{"$f":"'2.Bontás, építőanyagok újraha'!H4","v":0},{"$f":"'2.Bontás, építőanyagok újraha'!I4","v":0}]
["19","Költségtérítések",{"$f":"'19.Költségtérítések'!H3","v":0},{"$f":"'19.Költségtérítések'!I3","v":0}]
["21","Irtás, föld- és sziklamunka",{"$f":"'21.Irtás, föld- és sziklamunka'!H10","v":0},{"$f":"'21.Irtás, föld- és sziklamunka'!I10","v":0}]
["31","Helyszíni beton és vasbeton munkák",{"$f":"'31.Helyszíni beton és vasbeton'!H3","v":0},{"$f":"'31.Helyszíni beton és vasbeton'!I3","v":0}]
["42","Hideg- és melegburkolatok készítése, aljzat előkészítés",{"$f":"'42.Hideg- és melegburkolatok k'!H7","v":0},{"$f":"'42.Hideg- és melegburkolatok k'!I7","v":0}]
["44","Fa- és műanyag szerkezet elhelyezése",{"$f":"'44.Fa- és műanyag szerkezet el'!H5","v":0},{"$f":"'44.Fa- és műanyag szerkezet el'!I5","v":0}]
["53","Közmű csatornaépítés",{"$f":"'53.Közmű csatornaépítés'!H5","v":0},{"$f":"'53.Közmű csatornaépítés'!I5","v":0}]
["54","Közmű csővezetékek és szerelvények szerelése",{"$f":"'54.Közmű csővezetékek és szere'!H3","v":0},{"$f":"'54.Közmű csővezetékek és szere'!I3","v":0}]
["82","Épületgépészeti szerelvények és berendezések szerelése",{"$f":"'82.Épületgépészeti szerelvénye'!H8","v":0},{"$f":"'82.Épületgépészeti szerelvénye'!I8","v":0}]
[null,"Összesen (HUF)",{"$f":"ROUND(SUM(C2:C10),0)","v":0},{"$f":"ROUND(SUM(D2:D10),0)","v":0}]

{"sheet":"2.Bontás, építőanyagok újraha","index":3,"n_rows":4,"n_cols":9,"rows_kept":4,"cut":false,"hidden":false,"merged":[]}
["Ssz.","Tételszám","Tétel szövege","Menny.","Egység","Anyag egységár","Díj egységre","Anyag összesen","Díj összesen"]
[1,"02-030-2.1","Bontott, kitermelt talaj felrakása szállítóeszközre gépi erővel, kiegészítő kézi munkával",22,"m3",null,null,{"$f":"ROUND(F2*D2,0)","v":0},{"$f":"ROUND(G2*D2,0)","v":0}]
[2,"02-030-7.1","Vegyes építési- bontási törmelék felrakása szállítóeszközre gépi erővel, kiegészítő kézi munkával",1,"db",null,null,{"$f":"ROUND(F3*D3,0)","v":0},{"$f":"ROUND(G3*D3,0)","v":0}]
[null,null,"Munkanem összesen (HUF)",{"$nulls":4},{"$f":"ROUND(SUM(H2:H3),0)","v":0},{"$f":"ROUND(SUM(I2:I3),0)","v":0}]

{"sheet":"19.Költségtérítések","index":4,"n_rows":3,"n_cols":9,"rows_kept":3,"cut":false,"hidden":false,"merged":[]}
["Ssz.","Tételszám","Tétel szövege","Menny.","Egység","Anyag egységár","Díj egységre","Anyag összesen","Díj összesen"]
[1,"19-010-1.11","Általános teendők, megvalósulás szakaszában, szennyvízrendszer kamerázása és dokumentálása",1,"db",null,null,{"$f":"ROUND(F2*D2,0)","v":0},{"$f":"ROUND(G2*D2,0)","v":0}]
[null,null,"Munkanem összesen (HUF)",{"$nulls":4},{"$f":"ROUND(SUM(H2:H2),0)","v":0},{"$f":"ROUND(SUM(I2:I2),0)","v":0}]

{"sheet":"21.Irtás, föld- és sziklamunka","index":5,"n_rows":10,"n_cols":9,"rows_kept":10,"cut":false,"hidden":false,"merged":[]}
["Ssz.","Tételszám","Tétel szövege","Menny.","Egység","Anyag egységár","Díj egységre","Anyag összesen","Díj összesen"]
[1,"21-003-5.1.1.2","Munkaárok földkiemelése közművesített területen, kézi erővel, bármely konzisztenciájú talajban, dúcolás nélkül, 2,0 m² szelvényig, III. talajosztály",67,"m3",null,null,{"$f":"ROUND(F2*D2,0)","v":0},{"$f":"ROUND(G2*D2,0)","v":0}]
[2,"21-003-11.1.1","Földvisszatöltés munkagödörbe vagy munkaárokba, tömörítés nélkül, réteges elterítéssel, I-IV. osztályú talajban, kézi erővel, az anyag súlypontja karoláson belül, a vezeték (műtárgy) felett és mellett 50 cm vastagságig",66,"m3",null,null,0,0]
[3,"21-004-2.1.1","Földmű vízszintes felületének rendezése a felesleges föld elterítésével, tömörítés nélkül, gépi erővel, kiegészítő kézi munkával, 16%-os terephajlásig, 20 cm vastagságban, talajosztály: I-IV.",140,"m2",null,null,0,0]
[4,"21-004-4.1.1-0133691","Talajjavító réteg készítése vonalas létesítményeknél, 3,00 m szélességig vagy építményen belül, homokból, Tört homok, ZK 0/4, KŐKA, Alsózsolca",22,"m3",null,null,0,0]
[5,"21-008-2.3.1","Tömörítés bármely tömörítési osztályban gépi erővel, vezeték felett és mellett, tömörségi fok: 85%",88,"m3",null,null,0,0]
[6,"21-004-5.1.2.1","Tükörkészítés tömörítés nélkül, sík felületen kézi erővel talajosztály: V-VI.",11.92,"m2",null,null,0,0]
[7,"21-011-6.1-0235354","Talajstabilizálás, talajerősítés geotextiliával, VIACON WG22 erősítő szőtt geotextília, PP-ből, 120 g/m² szakító szilárdság: 22/22 kN/m,  tekercsméret: 5,3 x 100 m",12,"m2",null,null,0,0]
[8,"21-011-7.2-0120189","Feltöltések alap- és lábazati falak közé és alagsori vagy alá nem pincézett földszinti padozatok alá, az anyag szétterítésével, mozgatásával, osztályozatlan kavicsból, Természetes szemmegoszlású homokos kavics, THK 0/32 P-TT, Nyékládháza",1.6,"m3",null,null,0,0]
[null,null,"Munkanem összesen (HUF)",{"$nulls":4},{"$f":"ROUND(SUM(H2:H9),0)","v":0},{"$f":"ROUND(SUM(I2:I9),0)","v":0}]

{"sheet":"31.Helyszíni beton és vasbeton","index":6,"n_rows":3,"n_cols":9,"rows_kept":3,"cut":false,"hidden":false,"merged":[]}
["Ssz.","Tételszám","Tétel szövege","Menny.","Egység","Anyag egységár","Díj egységre","Anyag összesen","Díj összesen"]
[1,"31-030-11.1.1.2-0112110","Beton aljzat készítése helyszínen kevert betonból, kézi továbbítással és bedolgozással, merev aljzatra, tartószerkezetre léccel lehúzva, kavicsbetonból, C 8/10 - C 16/20 kissé képlékeny konzisztenciájú betonból, 6 cm vastagság felett, C12/15 - X0b(H) - 16 - F2 - CEM 32,5, m = 6,4 finomsági modulussal",1.5,"m3",null,null,{"$f":"ROUND(F2*D2,0)","v":0},{"$f":"ROUND(G2*D2,0)","v":0}]
[null,null,"Munkanem összesen (HUF)",{"$nulls":4},{"$f":"ROUND(SUM(H2:H2),0)","v":0},{"$f":"ROUND(SUM(I2:I2),0)","v":0}]

{"sheet":"42.Hideg- és melegburkolatok k","index":7,"n_rows":7,"n_cols":9,"rows_kept":7,"cut":false,"hidden":false,"merged":[]}
["Ssz.","Tételszám","Tétel szövege","Menny.","Egység","Anyag egységár","Díj egységre","Anyag összesen","Díj összesen"]
[1,"42-011-2.1.1.1-0216002","Padlóburkolat hordozószerkezetének felületelőkészítése beltérben, beton alapfelületen felületelőkészítő alapozó és tapadóhíd felhordása egy rétegben, MUREXIN LF 1 mélyalapozó",11.92,"m2",null,null,{"$f":"ROUND(F2*D2,0)","v":0},{"$f":"ROUND(G2*D2,0)","v":0}]
[2,"42-011-2.1.1.4.1-0311055","Padlóburkolat hordozószerkezetének felületelőkészítése beltérben, beton alapfelületen önterülő felületkiegyenlítés készítése 5 mm átlagos rétegvastagságban, MUREXIN OS 50 Objekt Plus önterülő aljzatkiegyenlítő",11.92,"m2",null,null,{"$f":"ROUND(F3*D3,0)","v":0},{"$f":"ROUND(G3*D3,0)","v":0}]
[3,"42-022-1.1.1.2.1.1-2212004","Padlóburkolat készítése, beltérben, tégla, beton, vakolt alapfelületen, gres, kőporcelán lappal, kötésben vagy hálósan, 3-5 mm vtg. ragasztóba rakva, 1-10 mm fugaszélességgel, 20x20 - 40x40 cm közötti lapmérettel, Cemix FLEX/Flex ragasztó, EN 12004 szerinti C2TE minősítéssel, kül- és beltérbe, fagyálló, padlófűtéshez is, Cikkszám: K00617021 Cemix ProCol+ Kiemelt minőségű flexibilis fugázó, kül- és beltéri használatra, Cikkszám: K00686xxx",11.92,"m2",null,null,{"$f":"ROUND(F4*D4,0)","v":0},{"$f":"ROUND(G4*D4,0)","v":0}]
[4,"42-090-3.2.1.2","Lapburkolat javítása; Fal- és pillérburkolat javítása egy-egy lap kivésésével, pótlásával, 15x15 cm-es csempelap",50,"db",null,null,{"$f":"ROUND(F5*D5,0)","v":0},{"$f":"ROUND(G5*D5,0)","v":0}]
[5,"42-011-2.1.1.3","Padlóburkolat hordozószerkezetének felületelőkészítése beltérben, beton alapfelületen (önterülő padlókiegyenlítő rétegen burkolás előtt) felületelőkészítő alapozó és tapadóhíd felhordása egy rétegben",11.92,"m2",null,null,{"$f":"ROUND(F6*D6,0)","v":0},{"$f":"ROUND(G6*D6,0)","v":0}]
[null,null,"Munkanem összesen (HUF)",{"$nulls":4},{"$f":"ROUND(SUM(H2:H6),0)","v":0},{"$f":"ROUND(SUM(I2:I6),0)","v":0}]

{"sheet":"44.Fa- és műanyag szerkezet el","index":8,"n_rows":5,"n_cols":9,"rows_kept":5,"cut":false,"hidden":false,"merged":[]}
["Ssz.","Tételszám","Tétel szövege","Menny.","Egység","Anyag egységár","Díj egységre","Anyag összesen","Díj összesen"]
[1,"44-030-2.2","Meglévő lebontott szerelt jellegű WC-kabinrendszer visszaszerelése kompletten, lábakkal, zárral, foglaltságjelzővel, kettes kabin",1,"db",null,null,{"$f":"ROUND(F2*D2,0)","v":0},{"$f":"ROUND(G2*D2,0)","v":0}]
[2,"44-011-1.1.1","Meglévő 90/270 fa ajtó bontása. 90/270 Műanyag kültéri nyílászárók elhelyezése felül világítóval előre kihagyott falnyílásba, hőszigetelt, fokozott légzárású bejárati ajtó, (szerelvényezve, finom beállítással), 5,01-10,00 m kerület között, műanyag bejárati ajtó kifelé nyíló 3 rétegű üveggel, kívül-belül színes profillal, 5 kamrás PROFINE Uw<1,15 W/m2K",1,"db",null,null,{"$f":"ROUND(F3*D3,0)","v":0},{"$f":"ROUND(G3*D3,0)","v":0}]
[3,"44-011-1.1.2-0168518","Meglévő 266/270 fa ajtó bontása. 266/270 Műanyag kültéri nyílászárók elhelyezése, íves sorolt felül világítóval, két oldalt szélen fix sorolt oldal üveges, fokozott légzárású bejárati ajtó (szerelvényezve, finom beállítással), 3 rétegű üveggel, kívül-belül színes profillal, 10,00 m kerület felett, kifelé nyíló üvegezett kétszárnyú bejárati ajtó 5 kamrás PROFINE Uw<1,15 W/m2K",1,"db",null,null,{"$f":"ROUND(F4*D4,0)","v":0},{"$f":"ROUND(G4*D4,0)","v":0}]
[null,null,"Munkanem összesen (HUF)",{"$nulls":4},{"$f":"ROUND(SUM(H2:H4),0)","v":0},{"$f":"ROUND(SUM(I2:I4),0)","v":0}]

{"sheet":"53.Közmű csatornaépítés","index":9,"n_rows":5,"n_cols":9,"rows_kept":5,"cut":false,"hidden":false,"merged":[]}
["Ssz.","Tételszám","Tétel szövege","Menny.","Egység","Anyag egységár","Díj egységre","Anyag összesen","Díj összesen"]
[1,"53-001-31.4.2-0131515","Egyoldalon tokos műanyag csatornacső beépítése földárokba, gumigyűrűs kötéssel, csőidomok nélkül, 5,00 m hosszú csövekből, külső csőátmérő: 125 mm, PIPELIFE PVC-U tömörfalú tokos csatornacső 125x3,2x5000 mm SN4 MSZEN1401, KGEM125/5M.SN4",140,"m",null,null,{"$f":"ROUND(F2*D2,0)","v":0},{"$f":"ROUND(G2*D2,0)","v":0}]
[2,"53-001-32.1.2-0234241","Műanyag, tokos csatornacső idom beépítése földárokba, gumigyűrűs kötéssel, külső csőátmérő: 250 mm-ig, külső csőátmérő: 125 mm, PIPELIFE PVC-U csatorna ágidom 125 mm/110 mm x 87°, KGEA125/110X87",10,"db",null,null,{"$f":"ROUND(F3*D3,0)","v":0},{"$f":"ROUND(G3*D3,0)","v":0}]
[3,"53-001-32.1.2","Kültéri víznyelő, eresz bekötéssel, szűrőkosárral, ráccsal, 110/125 mm",10,"db",null,null,{"$f":"ROUND(F4*D4,0)","v":0},{"$f":"ROUND(G4*D4,0)","v":0}]
[null,null,"Munkanem összesen (HUF)",{"$nulls":4},{"$f":"ROUND(SUM(H2:H4),0)","v":0},{"$f":"ROUND(SUM(I2:I4),0)","v":0}]

{"sheet":"54.Közmű csővezetékek és szere","index":10,"n_rows":3,"n_cols":9,"rows_kept":3,"cut":false,"hidden":false,"merged":[]}
["Ssz.","Tételszám","Tétel szövege","Menny.","Egység","Anyag egységár","Díj egységre","Anyag összesen","Díj összesen"]
[1,"54-007-1.1.1-0131321","Acél védőcső átsajtolása 10 méter átfúrási hosszig I-IV. osztályú talajban DN 150 méretig, Melegen hengerelt, varratnélküli acélcső, MSZ 29-86, A 37X, 101,6x3,6 mm",10,"m",null,null,{"$f":"ROUND(F2*D2,0)","v":0},{"$f":"ROUND(G2*D2,0)","v":0}]
[null,null,"Munkanem összesen (HUF)",{"$nulls":4},{"$f":"ROUND(SUM(H2:H2),0)","v":0},{"$f":"ROUND(SUM(I2:I2),0)","v":0}]

{"sheet":"82.Épületgépészeti szerelvénye","index":11,"n_rows":8,"n_cols":9,"rows_kept":8,"cut":false,"hidden":false,"merged":[]}
["Ssz.","Tételszám","Tétel szövege","Menny.","Egység","Anyag egységár","Díj egységre","Anyag összesen","Díj összesen"]
[1,"82-009-5.1","Meglévő lebontott mosdó berendezés elhelyezése és bekötése, falra szerelhető porcelán kivitelben (komplett)",2,"db",null,null,{"$f":"ROUND(F2*D2,0)","v":0},{"$f":"ROUND(G2*D2,0)","v":0}]
[2,"82-009-11.1.1.2","Meglévő lebontott WC csésze elhelyezése és bekötése, porcelánból, alsókifolyású, mélyöblítésű kivitelben",2,"db",null,null,0,0]
[3,"82-009-12.1-0117096","WC-csésze kiegészítő szerelvényeinek elhelyezése, WC-ülőke, Alföldi WC-ülőke, 8780 95 01, fehér",2,"db",null,null,0,0]
[4,"82-009-12.2.1-0135121","WC-csésze kiegészítő szerelvényeinek elhelyezése, WC csatlakozó, alsó kifolyású WC-hez, HL200/1, Lágy PE WC-csatlakozó elfordítható excenterrel (0-20mm) és többrészes DN110 ajakos tömítéssel, fehér",2,"db",null,null,0,0]
[5,"82-009-15.1.1","Meglévő lebontott Infrás piszoár berendezés elhelyezése, bekötése, porcelán, falra szerelhető vizelde",2,"db",null,null,0,0]
[6,"82-009-31.2-0110915","Vizes berendezési tárgyak bűzelzáróinak felszerelése, mosdóhoz, bidéhez, MOFÉM búraszifon leeresztőszeleppel, krómozott, Csz: 165-0027-00",2,"db",null,null,0,0]
[null,null,"Munkanem összesen (HUF)",{"$nulls":4},{"$f":"ROUND(SUM(H2:H7),0)","v":0},{"$f":"ROUND(SUM(I2:I7),0)","v":0}]